Cogmind - Beta 13 @@@ ROGUE MODE // 2024.04.11 @ 19:53:27 Player: Patryk Z Result: Destroyed by Y-54 Guardian with Flak Gun Performance ------------- Evolutions (0) 0 Regions Visited (4) 800 Robots Destroyed (30) 150 Value Destroyed (684) 684 Prototype IDs (0) 0 Alien Tech Used (0) 0 Bonus (13) 13 TOTAL SCORE: 1647 Bonus ------- High Alert Combat Kills 13 Cogmind --------- Core Integrity 0/250 Matter 59/300 Energy 28/100 System Corruption 0% Temperature Hot (202) Movement Treading (240) Ox1 Location -7/Recycling Parts ------- > --- POWER (1) -------- (None) > --- PROPULSION (2) --- Light Treads Light Treads > --- UTILITY (2) ------ High-capacity Storage Unit Light Armor Plating > --- WEAPON (2) ------- Subdweller Machine Gun > --- INVENTORY (20) --- Structural Scanner Seismic Detector Light Armor Plating Light Armor Plating Makeshift System Shield Medium Laser Small Laser Subdweller Laser Assault Rifle Subdweller Shrapnel Launcher Peak State ------------ > --- POWER ------------ Light Ion Engine > --- PROPULSION ------- Wheel Subdweller Monowheel > --- UTILITY ---------- High-capacity Storage Unit Light Armor Plating > --- WEAPON ----------- Subdweller Laser Subdweller Laser > --- INVENTORY -------- Ion Engine Light Treads Light Treads Structural Scanner Seismic Detector Seismic Detector Light Armor Plating Light Armor Plating Makeshift System Shield Medium Laser Small Laser Assault Rifle Subdweller Machine Gun Grenade Launcher Subdweller Shrapnel Launcher [Rating: 12] Favorites ----------- Power Ion Engine Engine Ion Engine Propulsion Wheel Treads Light Treads Wheel Wheel Utility High-capacity Storage Unit Device Seismic Detector Storage High-capacity Storage Unit Protection Light Armor Plating Weapon Subdweller Laser Energy Gun Subdweller Laser Ballistic Gun Light Assault Rifle Launcher Grenade Launcher Special Weapon Mining Laser Build | -11 -10 -10 -10 -7 ------- Run | Yrd Mat Min Sub Rec Slots Evolved . | . . . . . Power . | . . . . . Propulsion . | . . . . . Utility . | . . . . . Weapon . | . . . . . Parts Attached 51 | 8 15 4 20 4 Power 3 | 1 . . 2 . Engine 3 | 1 . . 2 . Core . | . . . . . Reactor . | . . . . . Propulsion 10 | 2 4 . 2 2 Treads 4 | 2 . . . 2 Leg . | . . . . . Wheel 6 | . 4 . 2 . Hover . | . . . . . Flight . | . . . . . Utility 10 | 2 3 1 3 1 Device 6 | 1 2 1 2 . Storage 2 | 1 1 . . . Processor . | . . . . . Hackware . | . . . . . Protection 2 | . . . 1 1 Artifact . | . . . . . Weapon 28 | 3 8 3 13 1 Energy Gun 12 | 2 3 1 6 . Energy Cannon . | . . . . . Ballistic Gun 5 | 1 2 . 1 1 Ballistic Cannon . | . . . . . Launcher 9 | . 3 1 5 . Special Weapon 2 | . . 1 1 . Impact Weapon . | . . . . . Slashing Weapon . | . . . . . Piercing Weapon . | . . . . . Special Melee Weapon . | . . . . . Unidentified Prototypes . | . . . . . Parts Lost 9 | . . . 4 5 Power 2 | . . . 1 1 Propulsion 3 | . . . 1 2 Utility 1 | . . . . 1 Weapon 3 | . . . 2 1 Highest Loss Streak 5 | . . . 3 5 To Critical Strikes . | . . . . . Average Slot Usage (%) 98 | . 100 100 97 85 Engine 13 | . 14 14 13 . Treads 2 | . 5 . . 28 Wheel 25 | . 22 28 27 . Device 12 | . 14 14 12 7 Storage 14 | . 14 14 14 14 Energy Gun 16 | . 10 11 21 21 Ballistic Gun 7 | . 14 14 2 7 Launcher 2 | . 3 . 1 . Special Weapon 1 | . . 1 2 . Naked Turns . | . . . . . Heaviest Build 54 | 14 50 50 54 . Greatest Support 40 | 40 40 20 30 . Greatest Overweight (x) 2 | . 2 2 2 . Average Overweight (x) 1 | . 1 2 1 . Largest Inventory Capacity 20 | 8 20 20 20 20 Average Capacity 18 | 6 17 20 20 20 Most Carried 16 | 5 12 13 16 13 Average Carried 11 | 2 8 11 13 11 Final Capacity 20 | 8 20 20 20 20 Final Carried 13 | 5 11 12 13 10 Class Distribution -------------------- 100% | Mutant Dominant Class ---------------- Mutant | -10/Materials Mutant | -10/Mines Mutant | -10/Subcaves Mutant | -7/Recycling Resources | -11 -10 -10 -10 -7 ----------- Run | Yrd Mat Min Sub Rec Matter Collected 808 | 253 158 154 243 . Remotely . | . . . . . Salvage Created 616 | 41 330 108 62 75 Parts 52 | 9 27 7 6 3 Haulers Intercepted . | . . . . . Recyclers Shooed . | . . . . . Parts Field Recycled . | . . . . . Retrieved Matter . | . . . . . Parts Self-Destructed 5 | . . . 5 . Prevented . | . . . . . Kills | -11 -10 -10 -10 -7 ------- Run | Yrd Mat Min Sub Rec Combat Hostiles Destroyed 19 | . 10 2 6 1 Guns 3 | . 1 . 1 1 AOE 16 | . 9 2 5 . Classes Destroyed 9 | 1 4 1 3 . Worker 1 | . . 1 . . Builder 3 | . 3 . . . Tunneler 4 | 2 1 1 . . Recycler 1 | . 1 . . . Turret 2 | . . . 2 . Swarmer 7 | . 3 . 4 . Grunt 9 | . 7 2 . . Sentry 2 | . . . 1 1 Subdweller 1 | . . . 1 . Best Kill Streak 7 | 2 7 2 5 1 Combat Bots Only 4 | . 4 2 4 1 Max Kills in Single Turn 3 | 1 3 2 2 1 Gunslinging . | . . . . . Exploded 3 | . 3 2 2 . Melee . | . . . . . Uniques/NPCs Destroyed . | . . . . . Combat | -11 -10 -10 -10 -7 -------- Run | Yrd Mat Min Sub Rec Hostile Shots Fired 154 | . 13 6 45 90 Missed 42 | . 5 1 10 26 Damage Taken 1099 | . 125 70 422 482 Core 254 | . 41 27 73 113 Absorbed by Shields . | . . . . . Core Remaining (%) 100 | 100 . . . . Volleys Fired 66 | 2 21 12 24 7 Largest 2 | 2 2 2 2 2 Hottest 120 | 70 70 100 120 120 Shots Fired 104 | 4 33 20 36 11 Gun 65 | 4 17 14 19 11 Cannon . | . . . . . Launcher 33 | . 16 2 15 . Special 6 | . . 4 2 . Kinetic 26 | 2 12 8 1 3 Thermal 46 | 2 5 10 21 8 Explosive 32 | . 16 2 14 . Electromagnetic . | . . . . . Robot Hit Streak 13 | 2 8 3 8 13 Robot Miss Streak 4 | . 3 4 4 . Penetration Max . | . . . . . Secondary Targets 1 | . . . . 1 Max Gunslinging Chain 1 | . . . . 1 Shots Hit Robots 51 | 2 14 8 16 11 Core Hits 55 | 2 24 6 19 4 Critical Kills . | . . . . . Critical Parts Destroyed . | . . . . . Critical Strikes 2 | . . 1 1 . Burn 2 | . . 1 1 . Melee Attacks . | . . . . . Impact . | . . . . . Slashing . | . . . . . Piercing . | . . . . . Sneak Attacks . | . . . . . Combat Hostiles . | . . . . . Follow-up Attacks . | . . . . . Damage Inflicted 1926 | 24 825 198 658 221 Guns 562 | 24 61 84 172 221 Cannons . | . . . . . Explosions 1364 | . 764 114 486 . Melee . | . . . . . Ramming . | . . . . . Kinetic 233 | . 49 22 104 58 Thermal 433 | 24 12 62 172 163 Explosive 1260 | . 764 114 382 . Electromagnetic . | . . . . . Impact . | . . . . . Slashing . | . . . . . Piercing . | . . . . . Highest Corruption . | . . . . . Average Corruption . | . . . . . Corruption Purged . | . . . . . Corruption Blocked . | . . . . . Overload Shots . | . . . . . Overflow Damage 6 | . . . 6 . Projectiles . | . . . . . Explosions 6 | . . . 6 . Melee . | . . . . . Knockbacks . | . . . . . Impact . | . . . . . Kinetic . | . . . . . Secondary . | . . . . . Self-Inflicted Damage 55 | . 28 . 27 . Shots 3 | . 1 . 2 . Rammed . | . . . . . Targets Rammed . | . . . . . Kicked . | . . . . . Crushed . | . . . . . Highest Temperature 248 | 30 70 80 . 248 Average Temperature 53 | 18 22 26 . 164 Received Heat Transfer 366 | . 45 39 138 144 Effects 2 | . . . . 2 Interference 2 | . . . . 2 Siege Activations . | . . . . . Robots Corrupted . | . . . . . Combat Hostiles . | . . . . . Parts Fried . | . . . . . Impact Corruptions . | . . . . . Robots Melted . | . . . . . Combat Hostiles . | . . . . . Parts Melted 4 | . . 2 1 1 Heat Transferred 942 | 74 37 259 372 200 Parts Sabotaged . | . . . . . Parts Stolen . | . . . . . Parts Stripped . | . . . . . Power Chain Reactions . | . . . . . Alert | -11 -10 -10 -10 -7 ------- Run | Yrd Mat Min Sub Rec Peak Influence 540 | 10 380 161 . 540 Initial 540 | . 6 70 . 540 Average 167 | 2 208 115 . 525 Maximum Alert Level 2 | . 1 . . 2 Low Security (%) 68 | 100 52 100 . . Level 1 28 | . 47 . . . Level 2 2 | . . . . 100 Level 3 . | . . . . . Level 4 . | . . . . . Level 5 . | . . . . . High Security . | . . . . . Max Security . | . . . . . Squads Dispatched 3 | . 3 . . . Investigation 2 | . 2 . . . Extermination . | . . . . . Reinforcement 1 | . 1 . . . Assault . | . . . . . Garrison . | . . . . . Intercept . | . . . . . Searches Triggered . | . . . . . Construction Impeded . | . . . . . Haulers Reinforced . | . . . . . Active Scanning Responses . | . . . . . Cargo Convoy Interrupts . | . . . . . Stealth | -11 -10 -10 -10 -7 --------- Run | Yrd Mat Min Sub Rec Distress Signals 2 | . 2 . . . Communications Jammed . | . . . . . Distress Signals . | . . . . . Times Spotted 71 | . 11 3 55 2 Peak Tracking Total 5 | . 5 2 3 2 Tactical Retreats 6 | . . 1 5 . Traps | -11 -10 -10 -10 -7 ------- Run | Yrd Mat Min Sub Rec Traps Triggered 1 | . 1 . . . Indirectly . | . . . . . Trap Hack Attempts . | . . . . . Triggered . | . . . . . Disarmed . | . . . . . Reprogrammed . | . . . . . Reused . | . . . . . Traps Extracted . | . . . . . Installed . | . . . . . Triggered . | . . . . . Machines | -11 -10 -10 -10 -7 ---------- Run | Yrd Mat Min Sub Rec Machines Disabled 5 | . 2 . 3 . Max in Single Turn 2 | . 1 . 2 . Machines Repaired . | . . . . . Machines Dismantled . | . . . . . Machines Sabotaged . | . . . . . Overloaded Fab Kills . | . . . . . Hacking | -11 -10 -10 -10 -7 --------- Run | Yrd Mat Min Sub Rec Machines Accessed 4 | . 4 . . . Terminals 3 | . 3 . . . Fabricators . | . . . . . Repair Stations . | . . . . . Recycling Units 1 | . 1 . . . Scanalyzers . | . . . . . Garrison Access . | . . . . . Total Hacks 10 | . 10 . . . Successful 4 | . 4 . . . Failed 6 | . 6 . . . Catastrophic 1 | . 1 . . . Database Lockouts . | . . . . . Manual 8 | . 8 . . . Terminals 8 | . 8 . . . Fabricators . | . . . . . Repair Stations . | . . . . . Recycling Units 2 | . 2 . . . Scanalyzers . | . . . . . Garrison Access . | . . . . . Terminal Hacks 1 | . 1 . . . Terminal Index 1 | . 1 . . . Fabricator Hacks . | . . . . . Repair Station Hacks . | . . . . . Recycling Unit Hacks 1 | . 1 . . . Retrieve Components 1 | . 1 . . . Scanalyzer . | . . . . . Garrison Access Hacks . | . . . . . Unauthorized Hacks 2 | . 2 . . . Terminals 2 | . 2 . . . Botnet 2 | . 2 . . . Fabricators . | . . . . . Repair Stations . | . . . . . Recycling Units . | . . . . . Scanalyzers . | . . . . . Garrison Access . | . . . . . Data Cores Recovered . | . . . . . Used . | . . . . . Hacking Detections 4 | . 4 . . . Full Trace Events 1 | . 1 . . . Feedback Events . | . . . . . Feedback Blocked . | . . . . . Robot Schematics Acquired . | . . . . . Robots Built . | . . . . . Authchips . | . . . . . Time . | . . . . . Total Robot Build Rating . | . . . . . Part Schematics Acquired . | . . . . . Parts Built . | . . . . . Authchips . | . . . . . Time . | . . . . . Total Part Build Rating . | . . . . . Parts Repaired . | . . . . . Time . | . . . . . Parts Recycled . | . . . . . Recycled Matter . | . . . . . Retrieved Matter . | . . . . . Retrieved Components 5 | . 5 . . . Parts Scanalyzed . | . . . . . Part Schematics Acquired . | . . . . . Parts Damaged . | . . . . . Bothacking | -11 -10 -10 -10 -7 ------------ Run | Yrd Mat Min Sub Rec Used RIF Installer . | . . . . . Robots Hacked . | . . . . . Non-combat . | . . . . . Combat . | . . . . . Robot Hacks Applied . | . . . . . Relay Couplers Released . | . . . . . Fabnet Peak Effective % . | . . . . . Robots Rewired . | . . . . . Allies Hacked . | . . . . . Hacks Repelled . | . . . . . Allies | -11 -10 -10 -10 -7 -------- Run | Yrd Mat Min Sub Rec Total Allies . | . . . . . Largest Group . | . . . . . Highest-Rated Group . | . . . . . Highest-Rated Ally . | . . . . . Total Orders . | . . . . . Ally Attacks . | . . . . . Total Damage . | . . . . . Kills . | . . . . . Allies Corrupted . | . . . . . Allies Melted . | . . . . . Intel | -11 -10 -10 -10 -7 ------- Run | Yrd Mat Min Sub Rec Robot Analysis Total . | . . . . . Derelict Logs Recovered . | . . . . . Drone Launches . | . . . . . Drone Recoveries . | . . . . . Exploration | -11 -10 -10 -10 -7 ------------- Run | Yrd Mat Min Sub Rec Turns Passed 1573 | 107 466 184 794 22 Spaces Moved 880 | 53 303 116 408 . Core 3 | 3 . . . . Treads 99 | 50 49 . . . Legs . | . . . . . Wheels 778 | . 254 116 408 . Hover . | . . . . . Flight . | . . . . . Fastest Speed 50 | 50 110 110 107 . Average Speed 114 | 153 118 110 108 . Slowest Speed 240 | 160 240 110 130 . Overloaded Moves . | . . . . . Propulsion Burnouts . | . . . . . Robots Hopped . | . . . . . Cave-ins Triggered . | . . . . . Exploration Rate (%) 22 | 5 63 22 18 2 Regions Visited 4 Branch Regions 3 Pre-discovered Areas . | . . . . . Known Exits Taken . | . . . . . Unknown Exits Taken 4 | 1 1 1 1 . Scrap Searched 4 | . . . 4 . Spaces Dug 2 | . . . 2 . Terrain Destroyed 141 | . 50 18 73 . Melee . | . . . . . Projectile 3 | . . 1 2 . AOE 138 | . 50 17 71 . Terrain Rammed . | . . . . . Walls Destroyed . | . . . . . Machines Disabled . | . . . . . Actions | -11 -10 -10 -10 -7 --------- Run | Yrd Mat Min Sub Rec Total 1322 | 71 378 143 718 12 Wait 293 | 4 23 9 256 1 Move 876 | 52 302 115 407 . Hop . | . . . . . Pick Up 18 | 5 8 2 3 . Fast Attach 11 | 7 1 . 3 . Attach 14 | . 4 . 7 3 Detach 11 | . 5 . 6 . Swap 26 | 1 10 4 10 1 Drop 7 | . 4 1 2 . Fire 66 | 2 21 12 24 7 Melee . | . . . . . Ram . | . . . . . Kick . | . . . . . Crush . | . . . . . Escape Stasis . | . . . . . Rewire . | . . . . . Trap . | . . . . . Miscellaneous . | . . . . . Route ------- -11/Scrapyard -10/Materials (discovered 3 exits: [*Mat x2] / [*Min]) -10/Mines -10/Subcaves (discovered 2 exits: [*Mat] / [*Rec]) -7/Recycling History --------- Turn | Location | Event 35 | -11/Scrapyard | Discovered new exit (range 16) 108 | -11/Scrapyard | Entered Materials 321 | -10/Materials | Build established: Mutant 323 | -10/Materials | Discovered new exit (range 15) 361 | -10/Materials | Discovered new exit (range 16) 536 | -10/Materials | Discovered new exit (range 7) 574 | -10/Materials | Entered Mines 744 | -10/Mines | Discovered new exit (range 4) 758 | -10/Mines | Entered Subcaves 814 | -10/Subcaves | Disturbed a concealed Subdweller 861 | -10/Subcaves | Shifting Twisted Machinery released Sub. Monowheel 862 | -10/Subcaves | Shifting Twisted Machinery released Sub. Laser 862 | -10/Subcaves | Discovered new exit (range 7) 918 | -10/Subcaves | Shifting Twisted Machinery released Sub. Shrapnel Launcher 938 | -10/Subcaves | Shifting Twisted Machinery released Mak. System Shield 1487 | -10/Subcaves | Discovered new exit (range 14) 1490 | -10/Subcaves | Core integrity fell below 50% 1520 | -10/Subcaves | Lost 3 parts (1p1n1w) 1552 | -10/Subcaves | Entered Recycling 1560 | -7/Recycling | Core integrity fell below 20% 1574 | -7/Recycling | Destroyed by Y-54 Guardian with Flak Gun Last Messages --------------- 01514_ Acquired 7 matter. 01515_ The unstable cave ceiling collapses. 01533_ Autobeam Turret destroyed. 01537_ The unstable cave ceiling collapses. 01541_ Acquired 8 matter. 01543_ Acquired 13 matter. A mysterious object appears at your location! LOCATION=UNKNOWN GOAL=ESCAPE 01553_ Y-54 Guardian springs to life. 01556_ Sub. Monowheel destroyed. 01559_ Wheel destroyed. 01559_ Ion Engine destroyed. 01560_ Imp. Heat Sink melted. 01560_ Y-54 Guardian destroyed. 01560_ Switching to secondary target: Y-54 Guardian. 01561_ Seismic Detector destroyed. 01567_ Overheating: System interference. 01567_ Sub. Laser temporarily disabled. 01574_ Sub. Laser destroyed. Map ----- +----------------------------------------------------+ | ?????????????????????????????? | | ?????????????????????????????? | | ?????????????????????????????? | | ?????????????????????????????? | | ?????????????????????????????? | | ?????????????????????????????? | | ?????????????????????????????? | | ?????????????????????????????? | | ?????????????????????????????? | | ?????????????????????????????? | | ???? ??????????????????????? | | ???? ??????????????????????? | | ???? "?????????????????????? | | ???# Y?????????????????????? | | ???# "?????????????????????? | | ???# #?????????????????????? | | ??? #?????????????????????? | | ???#Y #?????????????????????? | | ???# #?????????????????????? | | ???# #?????????????????????? | | ???# #?????????????????????? | | ???# #?????????????????????? | | ???# #?????????????????????? | | ???# =##????????????????????? | | ???# !%#????????????????????? | | ???# @=#?????????????????????? | | ???# #?????????????????????? | | ???#####?????????????????????? | | ?????????????????????????????? | | ?????????????????????????????? | | ?????????????????????????????? | | ?????????????????????????????? | | ?????????????????????????????? | | | | | | | | | | | | | | | | | | | | | | | | | | | | | | | | | | | +----------------------------------------------------+ Best States ------------- Heat Dissipation 25 Energy Generation 10 Energy Capacity 250 Matter Stores 271 Matter Capacity 300 Sight Range 16 Terrain Scan Density 10 Armor Coverage 150 Evasion (%) 40 Recoil Reduction 2 Item Schematics ----------------- None Robot Schematics ------------------ None Fabricated ------------ Nothing Alien Tech Used ----------------- None Achievements -------------- None Challenges ------------ None Game ------ Seed DimensionalArmorLance Manual? 0 Play Time 00:27:23 Cumulative 37.8 hours Start 2024.04.11 @ 19:25:34 End 2024.04.11 @ 19:53:27 Sessions 1 Manual Loads 0 Difficulty Rogue Special Mode None Game No. 24 Rogue 24 Adventurer 0 Explorer 0 Win Type - Total 1 Types 1/0/0/0/0/0/0/0/0 Lore% 24 Gallery% 26 Achievement% 29 Wizard Run 0 Options --------- Layout 0 ASCII 0 Keyboard 1 Movement Numpad Keybinds 0 Fullscreen 2 Font 18/SmallcapsGlow Map View 76x50 Zoom Use 0% Tactical HUD 1 Map Filters NONE Filters NONE Steam 1 RUN: 38f7974f-c9c5-4d30-a97b-4320e7613f7a